fUSD/lending_fUSD_20251227
["ID","MTS","AMOUNT","RATE_DAILY","PERIOD"]
[399897004,1766830247106,-233.85760035,0.00032,2]
[399897005,1766830247115,-6350.35766414,0.0003201,2]
[399897006,1766830247124,-7564.92410594,0.00032168,3]
[399897007,1766830247133,-199.16,0.00032177,2]
[399897008,1766830247143,-500.0,0.00032178,14]
[399897009,1766830247152,-600.0,0.00032178,14]
[399897010,1766830247161,-500.0,0.00032178,14]
[399897011,1766830247171,-500.0,0.00032524,9]
[399897012,1766830247180,-500.0,0.00032524,9]
[399897013,1766830247190,-333.15698,0.00032524,28]
[399897014,1766830247200,-333.15698,0.00032524,28]
[399897015,1766830247210,-333.15698,0.00032524,28]
[399897016,1766830247219,-333.15698,0.00032524,28]
[399897017,1766830247232,-151.0,0.00032524,31]
[399897018,1766830247242,-12107.3750261,0.00032766,3]
[399897019,1766830247251,-10000.0,0.00032776,2]
[399897020,1766830247261,-151.0,0.00032863,14]
[399897021,1766830247271,-300.0,0.00032865,10]
[399897022,1766830247281,-666.0,0.00032865,10]
[399897023,1766830247291,-36322.1250784,0.00032866,3]
[399897024,1766830247302,-37824.6205297,0.00032866,3]
[399897025,1766830247312,-151.0,0.00032866,31]
[399897026,1766830247322,-500.0,0.00032875,9]
[399897027,1766830247332,-300.0,0.00032875,10]
[399897028,1766830247343,-512.48254163,0.00032876,2]
[399897029,1766830247354,-207.37635,0.00032876,9]
[399897030,1766830247365,-207.376349,0.00032876,9]
[399897031,1766830247375,-152.988573,0.00032876,9]
[399897032,1766830247385,-152.988573,0.00032876,9]
[399897033,1766830247394,-284.873534,0.00032876,9]
[399897034,1766830247405,-8272.50876482,0.00032876,60]
[399897035,1766830247415,-500.0,0.00032876,2]
[399897036,1766830247425,-500.0,0.00032876,9]
[399897037,1766830247434,-500.0,0.00032876,9]
[399897038,1766830247444,-365.69415505,0.00032876,9]
[399897039,1766830247453,-352.87236926,0.00032876,9]
[399897040,1766830247463,-500.0,0.00032876,9]
[399897041,1766830247473,-500.0,0.00032876,9]
[399897042,1766830247483,-500.0,0.00032876,9]
[399897043,1766830247493,-500.0,0.00032876,9]
[399897044,1766830247503,-500.0,0.00032876,9]
[399897045,1766830247512,-500.0,0.00032876,9]
[399897046,1766830247522,-500.0,0.00032876,9]
[399897047,1766830247531,-641.51,0.00032876,9]
[399897048,1766830247540,-500.0,0.00032876,9]
[399897049,1766830247550,-500.0,0.00032876,9]
[399897050,1766830247560,-500.0,0.00032876,9]
[399897051,1766830247570,-500.0,0.00032876,9]
[399897052,1766830247580,-500.0,0.00032876,9]
[399897053,1766830247589,-500.0,0.00032876,9]
[399897054,1766830247599,-500.0,0.00032876,9]
[399897055,1766830247608,-500.0,0.00032876,9]
[399897056,1766830247618,-162.8510161,0.00032876,9]
[399897057,1766830247627,-500.0,0.00032876,9]
[399897058,1766830247637,-500.0,0.00032876,9]
[399897059,1766830247646,-500.0,0.00032876,9]
[399897060,1766830247655,-535.49063933,0.00032876,9]
[399897061,1766830247664,-500.0,0.00032876,9]
[399897062,1766830247673,-500.0,0.00032876,9]
[399897063,1766830247682,-500.0,0.00032876,9]
[399897064,1766830247693,-571.32192874,0.00032876,9]
[399897065,1766830247702,-500.0,0.00032876,9]
[399897066,1766830247711,-500.0,0.00032876,9]
[399897067,1766830247721,-500.0,0.00032876,9]
[399897068,1766830247730,-500.0,0.00032876,9]
[399897069,1766830247739,-500.0,0.00032876,9]
[399897070,1766830247748,-500.0,0.00032876,9]
[399897071,1766830247757,-246.53845721,0.00032876,9]
[399897072,1766830247767,-500.0,0.00032876,9]
[399897073,1766830247775,-500.0,0.00032876,9]
[399897074,1766830247785,-500.0,0.00032876,9]
[399897075,1766830247794,-500.0,0.00032876,9]
[399897076,1766830247804,-500.0,0.00032876,9]
[399897077,1766830247814,-500.0,0.00032876,9]
[399897078,1766830247823,-500.0,0.00032876,9]
[399897079,1766830247832,-759.91,0.00032876,9]
[399897080,1766830247841,-500.0,0.00032876,9]
[399897081,1766830247851,-500.0,0.00032876,9]
[399897082,1766830247860,-500.0,0.00032876,9]
[399897083,1766830247870,-500.0,0.00032876,9]
[399897084,1766830247880,-414.83354794,0.00032876,9]
[399897085,1766830247889,-423.65345164,0.00032876,9]
[399897086,1766830247898,-500.0,0.00032876,9]
[399897087,1766830247908,-155.2428971,0.00032876,9]
[399897088,1766830247917,-510.93194377,0.00032876,9]
[399897089,1766830247926,-500.0,0.00032876,9]
[399897090,1766830247937,-500.0,0.00032876,9]
[399897091,1766830247947,-500.0,0.00032876,9]
[399897092,1766830247956,-500.0,0.00032876,9]
[399897093,1766830247965,-472.93476069,0.00032876,9]
[399897094,1766830247975,-500.0,0.00032876,9]
[399897095,1766830247985,-500.0,0.00032876,9]
[399897096,1766830247994,-500.0,0.00032876,9]
[399897097,1766830248003,-500.0,0.00032876,9]
[399897098,1766830248013,-500.0,0.00032876,9]
[399897099,1766830248022,-500.0,0.00032876,9]
[399897100,1766830248032,-500.0,0.00032876,9]
[399897101,1766830248041,-500.0,0.00032876,9]
[399897102,1766830248049,-194.97342902,0.00032876,9]
[399897103,1766830248059,-450.1,0.00032876,9]
[399897104,1766830248069,-1457.7,0.00032876,9]
[399897105,1766830248078,-500.0,0.00032876,9]
[399897106,1766830248087,-500.0,0.00032876,9]
[399897107,1766830248096,-500.0,0.00032876,9]
[399897108,1766830248105,-500.0,0.00032876,9]
[399897109,1766830248114,-622.76,0.00032876,9]
[399897110,1766830248123,-500.0,0.00032876,9]
[399897111,1766830248133,-500.0,0.00032876,9]
[399897112,1766830248142,-500.0,0.00032876,9]
[399897113,1766830248151,-158.18879175,0.00032876,9]
[399897114,1766830248160,-477.88484108,0.00032876,9]
[399897115,1766830248170,-337.48517277,0.00032876,9]
[399897116,1766830248179,-317.46917878,0.00032876,9]
[399897117,1766830248188,-224.29785497,0.00032876,9]
[399897118,1766830248197,-500.0,0.00032876,9]
[399897119,1766830248207,-500.0,0.00032876,9]
[399897120,1766830248216,-500.0,0.00032876,9]
[399897121,1766830248229,-500.0,0.00032876,9]
[399897122,1766830248239,-500.0,0.00032876,9]
[399897123,1766830248249,-196.34443096,0.00032876,9]
[399897124,1766830248259,-500.0,0.00032876,9]
[399897125,1766830248268,-500.0,0.00032876,9]
[399897126,1766830248277,-500.0,0.00032876,9]
[399897127,1766830248288,-576.45,0.00032876,9]
[399897128,1766830248297,-500.0,0.00032876,9]
[399897129,1766830248306,-500.0,0.00032876,9]
[399897130,1766830248316,-500.0,0.00032876,9]
[399897131,1766830248326,-500.0,0.00032876,9]
[399897132,1766830248335,-640.69260965,0.00032876,9]
[399897133,1766830248345,-500.0,0.00032876,9]
[399897134,1766830248354,-500.0,0.00032876,9]
[399897135,1766830248363,-500.0,0.00032876,9]
[399897136,1766830248373,-500.0,0.00032876,9]
[399897137,1766830248382,-500.0,0.00032876,9]
[399897138,1766830248391,-500.0,0.00032876,9]
[399897139,1766830248401,-192.76446357,0.00032876,9]
[399897140,1766830248411,-500.0,0.00032876,9]
[399897141,1766830248420,-500.0,0.00032876,9]
[399897142,1766830248430,-400.0,0.00032876,9]
[399897143,1766830248439,-500.0,0.00032876,9]
[399897144,1766830248449,-518.692464,0.00032876,9]
[399897145,1766830248458,-500.0,0.00032876,9]
[399897146,1766830248468,-500.0,0.00032876,9]
[399897147,1766830248477,-554.22837585,0.00032876,9]
[399897148,1766830248487,-249.43410679,0.00032876,9]
[399897149,1766830248497,-347.94135055,0.00032876,9]
[399897150,1766830248506,-400.0,0.00032876,9]
[399897151,1766830248516,-500.0,0.00032876,9]
[399897152,1766830248525,-500.0,0.00032876,9]
[399897153,1766830248534,-400.0,0.00032876,9]
[399897154,1766830248544,-1460.78,0.00032876,9]
[399897155,1766830248553,-500.0,0.00032876,9]
[399897156,1766830248563,-394.06002277,0.00032876,9]
[399897157,1766830248572,-500.0,0.00032876,9]
[399897158,1766830248581,-589.1691229,0.00032876,9]
[399897159,1766830248590,-476.93871701,0.00032876,9]
[399897160,1766830248600,-400.0,0.00032876,9]
[399897161,1766830248609,-400.0,0.00032876,9]
[399897162,1766830248619,-400.0,0.00032876,9]
[399897163,1766830248628,-500.0,0.00032876,9]
[399897164,1766830248637,-500.0,0.00032876,9]
[399897165,1766830248648,-400.0,0.00032876,9]
[399897166,1766830248657,-261.20614262,0.00032876,9]
[399897167,1766830248666,-450.99307769,0.00032876,9]
[399897168,1766830248676,-500.0,0.00032876,9]
[399897169,1766830248685,-604.72072456,0.00032876,9]
[399897170,1766830248694,-220.04137702,0.00032876,9]
[399897171,1766830248704,-167.48071921,0.00032876,9]
[399897172,1766830248713,-175.81323388,0.00032876,9]
[399897173,1766830248723,-260.21645062,0.00032876,9]
[399897174,1766830248732,-500.0,0.00032876,9]
[399897175,1766830248742,-415.29132457,0.00032876,9]
[399897176,1766830248751,-305.1421878,0.00032876,9]
[399897177,1766830248760,-500.0,0.00032876,9]
[399897178,1766830248770,-332.9865,0.00032877,2]
[399897179,1766830248779,-197.03000963,0.00032877,7]
[399897180,1766830248788,-174.18,0.000329,14]
[399897181,1766830248797,-822.08,0.000329,14]
[399897182,1766830248806,-151.0,0.000329,31]
[399897183,1766830248815,-151.0,0.000329,31]
[399897184,1766830248824,-478.10624806,0.0003297,2]
[399897185,1766830248833,-300.0,0.00032989,10]
[399897186,1766830248842,-24214.7500523,0.0003299,3]
[399897187,1766830248852,-22694.7723178,0.0003299,3]
[399897188,1766830248861,-39369.47485599,0.00033,2]
[399897189,1766830248870,-150.0,0.00033,8]
[399897190,1766830248879,-600.0,0.00033,14]
[399897191,1766830248888,-500.0,0.00033,14]
[399897192,1766830248899,-2011.2,0.00033,30]
[399897193,1766830248909,-6053.46,0.00033,14]
[399897194,1766830248919,-158.68843318,0.00033077,2]
[399897195,1766830248931,-600.49407228,0.00033095,2]
[399897196,1766830248941,-333.15698,0.00033101,28]
[399897197,1766830248954,-333.15698,0.00033101,28]
[399897198,1766830248965,-333.15698,0.00033101,28]
[399897199,1766830248976,-333.15698,0.00033101,28]
[399897200,1766830248986,-151.0,0.00033101,31]
[399897201,1766830248997,-7564.92410594,0.00033101,3]
[399897202,1766830249007,-9238.07246088,0.00033111,2]
[399897203,1766830249017,-151.0,0.0003314,31]
[399897204,1766830249027,-24214.7500523,0.0003314,3]
[399897205,1766830249037,-22694.7723178,0.0003314,3]
[399897206,1766830249047,-500.0,0.0003315,2]
[399897207,1766830249056,-500.0,0.0003315,9]
[399897208,1766830249066,-500.0,0.0003315,9]
[399897209,1766830249076,-500.0,0.0003315,9]
[399897210,1766830249085,-500.0,0.0003315,9]
[399897211,1766830249096,-500.0,0.0003315,9]
[399897212,1766830249106,-500.0,0.0003315,9]
[399897213,1766830249117,-500.0,0.0003315,9]
[399897214,1766830249127,-500.0,0.0003315,9]
[399897215,1766830249138,-500.0,0.0003315,9]
[399897216,1766830249148,-641.51,0.0003315,9]
[399897217,1766830249158,-500.0,0.0003315,9]
[399897218,1766830249168,-500.0,0.0003315,9]
[399897219,1766830249178,-500.0,0.0003315,9]
[399897220,1766830249188,-500.0,0.0003315,9]
[399897221,1766830249198,-500.0,0.0003315,9]
[399897222,1766830249208,-500.0,0.0003315,9]
[399897223,1766830249219,-500.0,0.0003315,9]
[399897224,1766830249229,-499.25455269,0.0003315,9]
[399897225,1766830249239,-341.64436476,0.0003315,9]
[399897226,1766830249250,-500.0,0.0003315,9]
[399897227,1766830249261,-500.0,0.0003315,9]
[399897228,1766830249271,-500.0,0.0003315,9]
[399897229,1766830249283,-302.78306136,0.0003315,9]
[399897230,1766830249294,-500.0,0.0003315,9]
[399897231,1766830249305,-339.52467908,0.0003315,9]
[399897232,1766830249315,-322.39989484,0.0003315,9]
[399897233,1766830249326,-500.0,0.0003315,9]
[399897234,1766830249337,-403.28879334,0.0003315,9]
[399897235,1766830249347,-386.33603915,0.0003315,9]
[399897236,1766830249358,-353.66163185,0.0003315,9]
[399897237,1766830249368,-500.0,0.0003315,9]
[399897238,1766830249379,-500.0,0.0003315,9]
[399897239,1766830249389,-329.76745823,0.0003315,9]
[399897240,1766830249399,-347.33681591,0.0003315,9]
[399897241,1766830249409,-500.0,0.0003315,9]
[399897242,1766830249420,-500.0,0.0003315,9]
[399897243,1766830249430,-500.0,0.0003315,9]
[399897244,1766830249439,-759.91,0.0003315,9]
[399897245,1766830249449,-500.0,0.0003315,9]
[399897246,1766830249458,-500.0,0.0003315,9]
[399897247,1766830249468,-190.91365337,0.0003315,9]
[399897248,1766830249479,-500.0,0.0003315,9]
[399897249,1766830249490,-500.0,0.0003315,9]
[399897250,1766830249501,-500.0,0.0003315,9]
[399897251,1766830249514,-500.0,0.0003315,9]
[399897252,1766830249525,-500.0,0.0003315,9]
[399897253,1766830249537,-433.86044121,0.0003315,9]
[399897254,1766830249548,-500.0,0.0003315,9]
[399897255,1766830249561,-500.0,0.0003315,9]
[399897256,1766830249572,-500.0,0.0003315,9]
[399897257,1766830249583,-500.0,0.0003315,9]
[399897258,1766830249594,-500.0,0.0003315,9]
[399897259,1766830249604,-500.0,0.0003315,9]
[399897260,1766830249615,-500.0,0.0003315,9]
[399897261,1766830249625,-266.02515595,0.0003315,9]
[399897262,1766830249635,-1457.7,0.0003315,9]
[399897263,1766830249646,-500.0,0.0003315,9]
[399897264,1766830249656,-324.43905964,0.0003315,9]
[399897265,1766830249667,-500.0,0.0003315,9]
[399897266,1766830249677,-292.26039767,0.0003315,9]
[399897267,1766830249687,-622.76,0.0003315,9]
[399897268,1766830249697,-500.0,0.0003315,9]
[399897269,1766830249707,-500.0,0.0003315,9]
[399897270,1766830249717,-482.93500995,0.0003315,9]
[399897271,1766830249727,-500.0,0.0003315,9]
[399897272,1766830249738,-500.0,0.0003315,9]
[399897273,1766830249749,-500.0,0.0003315,9]
[399897274,1766830249759,-500.0,0.0003315,9]
[399897275,1766830249770,-325.83772074,0.0003315,9]
[399897276,1766830249780,-500.0,0.0003315,9]
[399897277,1766830249790,-500.0,0.0003315,9]
[399897278,1766830249801,-500.0,0.0003315,9]
[399897279,1766830249812,-576.45,0.0003315,9]
[399897280,1766830249822,-453.15746625,0.0003315,9]
[399897281,1766830249832,-500.0,0.0003315,9]
[399897282,1766830249842,-500.0,0.0003315,9]
[399897283,1766830249852,-500.0,0.0003315,9]
[399897284,1766830249862,-500.0,0.0003315,9]
[399897285,1766830249873,-500.0,0.0003315,9]
[399897286,1766830249886,-500.0,0.0003315,9]
[399897287,1766830249896,-500.0,0.0003315,9]
[399897288,1766830249906,-500.0,0.0003315,9]
[399897289,1766830249916,-436.90177898,0.0003315,9]
[399897290,1766830249926,-500.0,0.0003315,9]
[399897291,1766830249936,-500.0,0.0003315,9]
[399897292,1766830249947,-500.0,0.0003315,9]
[399897293,1766830249957,-500.0,0.0003315,9]
[399897294,1766830249967,-605.55553602,0.0003315,9]
[399897295,1766830249977,-500.0,0.0003315,9]
[399897296,1766830249988,-500.0,0.0003315,9]
[399897297,1766830249998,-1460.78,0.0003315,9]
[399897298,1766830250007,-615.75062993,0.0003315,9]
[399897299,1766830250017,-500.0,0.0003315,9]
[399897300,1766830250028,-500.0,0.0003315,9]
[399897301,1766830250038,-500.0,0.0003315,9]
[399897302,1766830250048,-321.46,0.0003315,9]
[399897303,1766830250058,-500.0,0.0003315,9]
[399897304,1766830250069,-223.99812622,0.0003315,9]
[399897305,1766830250079,-350.77,0.00033165,2]
[399897306,1766830250088,-1099.0,0.00033368,5]
[399897307,1766830250099,-12107.3750261,0.00033414,3]
[399897308,1766830250108,-22694.7723178,0.00033414,3]
[399897309,1766830250118,-500.0,0.00033424,2]
[399897310,1766830250128,-500.0,0.00033424,9]
[399897311,1766830250139,-500.0,0.00033424,9]
[399897312,1766830250149,-500.0,0.00033424,9]
[399897313,1766830250158,-500.0,0.00033424,9]
[399897314,1766830250168,-500.0,0.00033424,9]
[399897315,1766830250179,-500.0,0.00033424,9]
[399897316,1766830250190,-500.0,0.00033424,9]
[399897317,1766830250201,-500.0,0.00033424,9]
[399897318,1766830250211,-500.0,0.00033424,9]
[399897319,1766830250221,-641.51,0.00033424,9]
[399897320,1766830250234,-500.0,0.00033424,9]
[399897321,1766830250244,-518.56400746,0.00033424,9]
[399897322,1766830250255,-500.0,0.00033424,9]
[399897323,1766830250266,-500.0,0.00033424,9]
[399897324,1766830250276,-500.0,0.00033424,9]
[399897325,1766830250286,-500.0,0.00033424,9]
[399897326,1766830250296,-500.0,0.00033424,9]
[399897327,1766830250307,-515.38916211,0.00033424,9]
[399897328,1766830250317,-500.0,0.00033424,9]
[399897329,1766830250328,-500.0,0.00033424,9]
[399897330,1766830250339,-500.0,0.00033424,9]
[399897331,1766830250349,-500.0,0.00033424,9]
[399897332,1766830250358,-500.0,0.00033424,9]
[399897333,1766830250368,-500.0,0.00033424,9]
[399897334,1766830250377,-500.0,0.00033424,9]
[399897335,1766830250387,-500.0,0.00033424,9]
[399897336,1766830250396,-254.62067617,0.00033424,9]
[399897337,1766830250406,-759.91,0.00033424,9]
[399897338,1766830250416,-540.08685774,0.00033424,9]
[399897339,1766830250426,-500.0,0.00033424,9]
[399897340,1766830250436,-500.0,0.00033424,9]
[399897341,1766830250447,-500.0,0.00033424,9]
[399897342,1766830250456,-500.0,0.00033424,9]
[399897343,1766830250467,-212.81982454,0.00033424,9]
[399897344,1766830250477,-498.61120962,0.00033424,9]
[399897345,1766830250487,-317.05592065,0.00033424,9]
[399897346,1766830250497,-500.0,0.00033424,9]
[399897347,1766830250508,-500.0,0.00033424,9]
[399897348,1766830250519,-500.0,0.00033424,9]
[399897349,1766830250530,-392.80012988,0.00033424,9]
[399897350,1766830250541,-500.0,0.00033424,9]
[399897351,1766830250552,-500.0,0.00033424,9]
[399897352,1766830250563,-1457.7,0.00033424,9]
[399897353,1766830250573,-500.0,0.00033424,9]
[399897354,1766830250583,-296.52753879,0.00033424,9]
[399897355,1766830250592,-622.76,0.00033424,9]
[399897356,1766830250602,-500.0,0.00033424,9]
[399897357,1766830250612,-177.92741371,0.00033424,9]
[399897358,1766830250621,-500.0,0.00033424,9]
[399897359,1766830250631,-500.0,0.00033424,9]
[399897360,1766830250641,-500.0,0.00033424,9]
[399897361,1766830250651,-500.0,0.00033424,9]
[399897362,1766830250660,-151.0,0.00033424,31]
[399897363,1766830250670,-450.57850228,0.00033424,9]
[399897364,1766830250680,-500.0,0.00033424,9]
[399897365,1766830250689,-288.53142291,0.00033424,9]
[399897366,1766830250699,-576.45,0.00033424,9]
[399897367,1766830250709,-500.0,0.00033424,9]
[399897368,1766830250719,-500.0,0.00033424,9]
[399897369,1766830250730,-500.0,0.00033424,9]
[399897370,1766830250740,-493.68272993,0.00033424,9]
[399897371,1766830250750,-201.4748005,0.00033424,9]
[399897372,1766830250761,-500.0,0.00033424,9]
[399897373,1766830250771,-500.0,0.00033424,9]
[399897374,1766830250782,-500.0,0.00033424,9]
[399897375,1766830250793,-500.0,0.00033424,9]
[399897376,1766830250803,-500.0,0.00033424,9]
[399897377,1766830250814,-500.0,0.00033424,9]
[399897378,1766830250824,-214.86678497,0.00033424,9]
[399897379,1766830250834,-500.0,0.00033424,9]
[399897380,1766830250845,-215.38559579,0.00033424,9]
[399897381,1766830250854,-1460.78,0.00033424,9]
[399897382,1766830250864,-500.0,0.00033424,9]
[399897383,1766830250873,-500.0,0.00033424,9]
[399897384,1766830250883,-500.0,0.00033424,9]
[399897385,1766830250893,-500.0,0.00033424,9]
[399897386,1766830250902,-1281.54023808,0.00033488,2]
[399897387,1766830250912,-745.2,0.00033647,3]
[399897388,1766830250922,-15129.8482119,0.00033688,3]
[399897389,1766830250932,-354.24,0.00033697,9]
[399897390,1766830250942,-500.0,0.00033698,2]
[399897391,1766830250952,-500.0,0.00033698,9]
[399897392,1766830250963,-411.983733,0.00033698,9]
[399897393,1766830250974,-399.36913374,0.00033698,9]
[399897394,1766830250984,-422.13893234,0.00033698,9]
[399897395,1766830250994,-500.0,0.00033698,9]
[399897396,1766830251004,-500.0,0.00033698,9]
[399897397,1766830251014,-432.78253268,0.00033698,9]
[399897398,1766830251023,-500.0,0.00033698,9]
[399897399,1766830251034,-500.0,0.00033698,9]
[399897400,1766830251044,-641.51,0.00033698,9]
[399897401,1766830251053,-500.0,0.00033698,9]
[399897402,1766830251063,-500.0,0.00033698,9]
[399897403,1766830251072,-500.0,0.00033698,9]
[399897404,1766830251082,-500.0,0.00033698,9]
[399897405,1766830251092,-500.0,0.00033698,9]
[399897406,1766830251102,-500.0,0.00033698,9]
[399897407,1766830251111,-500.0,0.00033698,9]
[399897408,1766830251121,-500.0,0.00033698,9]
[399897409,1766830251131,-500.0,0.00033698,9]
[399897410,1766830251141,-500.0,0.00033698,9]
[399897411,1766830251151,-500.0,0.00033698,9]
[399897412,1766830251161,-500.0,0.00033698,9]
[399897413,1766830251171,-500.0,0.00033698,9]
[399897414,1766830251180,-500.0,0.00033698,9]
[399897415,1766830251190,-759.91,0.00033698,9]
[399897416,1766830251199,-500.0,0.00033698,9]
[399897417,1766830251209,-157.39488607,0.00033698,9]
[399897418,1766830251219,-500.0,0.00033698,9]
[399897419,1766830251232,-500.0,0.00033698,9]
[399897420,1766830251242,-500.0,0.00033698,9]
[399897421,1766830251252,-500.0,0.00033698,9]
[399897422,1766830251262,-500.0,0.00033698,9]
[399897423,1766830251272,-500.0,0.00033698,9]
[399897424,1766830251283,-500.0,0.00033698,9]
[399897425,1766830251293,-1457.7,0.00033698,9]
[399897426,1766830251303,-500.0,0.00033698,9]
[399897427,1766830251313,-622.76,0.00033698,9]
[399897428,1766830251323,-500.0,0.00033698,9]
[399897429,1766830251334,-500.0,0.00033698,9]
[399897430,1766830251344,-500.0,0.00033698,9]
[399897431,1766830251353,-500.0,0.00033698,9]
[399897432,1766830251363,-500.0,0.00033698,9]
[399897433,1766830251373,-500.0,0.00033698,9]
[399897434,1766830251384,-576.45,0.00033698,9]
[399897435,1766830251393,-500.0,0.00033698,9]
[399897436,1766830251403,-500.0,0.00033698,9]
[399897437,1766830251413,-500.0,0.00033698,9]
[399897438,1766830251423,-500.0,0.00033698,9]
[399897439,1766830251433,-500.0,0.00033698,9]
[399897440,1766830251443,-500.0,0.00033698,9]
[399897441,1766830251453,-500.0,0.00033698,9]
[399897442,1766830251463,-500.0,0.00033698,9]
[399897443,1766830251472,-500.0,0.00033698,9]
[399897444,1766830251483,-500.0,0.00033698,9]
[399897445,1766830251493,-1460.78,0.00033698,9]
[399897446,1766830251503,-194.02049643,0.00033698,9]
[399897447,1766830251514,-500.0,0.00033698,9]
[399897448,1766830251524,-500.0,0.00033698,9]
[399897449,1766830251534,-500.0,0.00033698,9]
[399897450,1766830251544,-600.0,0.00033822,14]
[399897451,1766830251554,-500.0,0.00033822,14]
[399897452,1766830251563,-500.0,0.00033822,14]
[399897453,1766830251573,-174.18,0.000339,14]
[399897454,1766830251584,-822.08,0.000339,14]
[399897455,1766830251594,-15129.8482119,0.00033962,3]
[399897456,1766830251603,-500.0,0.00033972,2]
[399897457,1766830251613,-323.6054639,0.00033972,9]
[399897458,1766830251623,-500.0,0.00033972,9]
[399897459,1766830251633,-500.0,0.00033972,9]
[399897460,1766830251643,-500.0,0.00033972,9]
[399897461,1766830251652,-500.0,0.00033972,9]
[399897462,1766830251662,-641.51,0.00033972,9]
[399897463,1766830251672,-500.0,0.00033972,9]
[399897464,1766830251681,-500.0,0.00033972,9]
[399897465,1766830251691,-513.29430484,0.00033972,9]
[399897466,1766830251701,-312.2464153,0.00033972,9]
[399897467,1766830251710,-312.1970711,0.00033972,9]
[399897468,1766830251720,-188.73457677,0.00033972,9]
[399897469,1766830251730,-329.30533611,0.00033972,9]
[399897470,1766830251741,-500.0,0.00033972,9]
[399897471,1766830251751,-500.0,0.00033972,9]
[399897472,1766830251761,-500.0,0.00033972,9]
[399897473,1766830251771,-500.0,0.00033972,9]
[399897474,1766830251782,-359.08203342,0.00033972,9]
[399897475,1766830251792,-500.0,0.00033972,9]
[399897476,1766830251801,-432.17136577,0.00033972,9]
[399897477,1766830251811,-759.91,0.00033972,9]
[399897478,1766830251821,-500.0,0.00033972,9]
[399897479,1766830251831,-500.0,0.00033972,9]
[399897480,1766830251841,-500.0,0.00033972,9]
[399897481,1766830251850,-369.46320622,0.00033972,9]
[399897482,1766830251860,-335.98142413,0.00033972,9]
[399897483,1766830251870,-342.90826228,0.00033972,9]
[399897484,1766830251880,-500.0,0.00033972,9]
[399897485,1766830251890,-500.0,0.00033972,9]
[399897486,1766830251900,-1457.7,0.00033972,9]
[399897487,1766830251910,-375.90511172,0.00033972,9]
[399897488,1766830251920,-622.76,0.00033972,9]
[399897489,1766830251929,-500.0,0.00033972,9]
[399897490,1766830251939,-310.64948905,0.00033972,9]
[399897491,1766830251948,-499.10958802,0.00033972,9]
[399897492,1766830251958,-157.93744862,0.00033972,9]
[399897493,1766830251968,-220.87313254,0.00033972,9]
[399897494,1766830251978,-569.22848965,0.00033972,9]
[399897495,1766830251988,-576.45,0.00033972,9]
[399897496,1766830251998,-396.25156452,0.00033972,9]
[399897497,1766830252007,-500.0,0.00033972,9]
[399897498,1766830252017,-368.26777116,0.00033972,9]
[399897499,1766830252027,-500.0,0.00033972,9]
[399897500,1766830252036,-300.0,0.00033972,9]
[399897501,1766830252046,-500.0,0.00033972,9]
[399897502,1766830252057,-300.0,0.00033972,9]
[399897503,1766830252067,-500.0,0.00033972,9]